fUSD/lending_fUSD_20240329
["ID","MTS","AMOUNT","RATE_DAILY","PERIOD"]
[321010852,1711746632481,-520.479,0.00042268,4]
[321010853,1711746632490,-292.12150086,0.00042268,4]
[321010854,1711746632500,-662.71258934,0.00042268,4]
[321010855,1711746632509,-526.6230099,0.00042269,2]
[321010856,1711746632519,-155.98,0.00042322,2]
[321010857,1711746632529,-3353.02,0.00042351,2]
[321010858,1711746632539,-3353.02,0.00042351,2]
[321010859,1711746632551,-867.1370011,0.00042351,2]
[321010860,1711746632561,-205.0,0.00042361,2]
[321010861,1711746632571,-61843.75371469,0.00042361,2]
[321010862,1711746632582,-3883.70900597,0.00042361,2]
[321010863,1711746632592,-511.67336748,0.00042361,2]
[321010864,1711746632602,-5318.24516013,0.00042361,2]
[321010865,1711746632612,-299.999999,0.00042361,2]
[321010866,1711746632622,-499.999999,0.00042361,2]
[321010867,1711746632632,-233137.89572107,0.00042361,7]
[321010868,1711746632667,-3614.03794196,0.00042361,7]
[321010869,1711746632679,-4983.91384777,0.00042361,7]
[321010870,1711746632691,-204739.06474127,0.00042361,7]
[321010871,1711746632701,-3559.87371003,0.00042361,2]
[321010872,1711746632710,-22425.18158942,0.00042361,2]
[321010873,1711746632720,-21770.00279156,0.00042361,2]
[321010874,1711746632729,-407.0,0.00042361,2]
[321010875,1711746632739,-155.98,0.00042853,2]
[321010876,1711746632749,-572.78,0.00042946,2]
[321010877,1711746632758,-1360.38,0.00043063,2]
[321010878,1711746632768,-150.05,0.0004353,2]
[321010879,1711746632778,-37682.73135663,0.00043826,2]
[321010880,1711746632787,-606.83,0.0004385,2]
[321010881,1711746632799,-167.08491538,0.00043857,11]
[321010882,1711746632808,-5739.51348957,0.00043916,2]
[321010883,1711746632818,-168.63,0.00044226,2]
[321010884,1711746632828,-180.0,0.00044287,120]
[321010885,1711746632837,-622.4,0.00045,30]
[321010886,1711746632847,-159.8,0.0004501,15]
[321010887,1711746632856,-572.78,0.0004521,2]
[321010888,1711746632866,-800.0,0.00045312,2]
[321010889,1711746632875,-3353.02,0.0004538,2]
[321010890,1711746633217,-37682.73135663,0.0004539,2]
[321010891,1711746633227,-167.08491538,0.00045452,12]
[321010892,1711746633236,-5739.51348957,0.00045572,2]
[321010893,1711746633246,-1360.38,0.00045802,2]
[321010894,1711746633255,-200.0,0.00045854,2]
[321010895,1711746633264,-170.18,0.00046157,2]
[321010896,1711746633273,-150.05,0.00046925,2]
[321010897,1711746633283,-37682.73135663,0.00046954,2]
[321010898,1711746633293,-167.08491538,0.00047048,13]
[321010899,1711746633303,-5739.51348957,0.00047227,2]
[321010900,1711746633312,-157.13748303,0.00047346,30]
[321010901,1711746633322,-152.11192555,0.00047409,34]
[321010902,1711746633331,-218.22894187,0.00047409,23]
[321010903,1711746633341,-168.22140587,0.00047409,2]
[321010904,1711746633351,-1443.97210942,0.00047409,23]
[321010905,1711746633360,-234.033006,0.00047448,97]
[321010906,1711746633369,-572.78,0.00047474,2]
[321010907,1711746633379,-3353.02,0.00047499,2]
[321010908,1711746633389,-3353.02,0.00047499,2]
[321010909,1711746633398,-154.17961156,0.00047508,30]
[321010910,1711746633407,-9419.9772,0.00047509,2]
[321010911,1711746633416,-36107.74211718,0.00047509,2]
[321010912,1711746633428,-297.90292434,0.00047509,2]
[321010913,1711746633452,-9244.3813195,0.00047509,2]
[321010914,1711746633463,-5591.152029,0.00047509,2]
[321010915,1711746633518,-193758.82160998,0.00047509,2]
[321010916,1711746633527,-71222.9398,0.00047509,2]
[321010917,1711746633537,-500.0,0.000478,17]
[321010918,1711746633546,-1100.0,0.000479,17]
[321010919,1711746633555,-559.09966642,0.00048,4]
[321010920,1711746633565,-11644.42918282,0.0004819,2]
[321010921,1711746633577,-167.26760921,0.00048228,31]
[321010922,1711746633587,-298.71277744,0.00048287,2]
[321010923,1711746633597,-48799.95179187,0.0004829,10]
[321010934,1711746637679,-384.90313745,0.00042351,2]
[321010935,1711746637798,-303.12686255,0.00042351,2]
[321010936,1711746637808,-425.37106005,0.00042351,2]
[321010945,1711746638837,-262.65893995,0.00042351,2]
[321010946,1711746638846,-688.03,0.00042351,2]
[321010947,1711746638855,-688.03,0.00047217,2]
[321010948,1711746638863,-272.14,0.00047499,30]
[321010949,1711746638872,-688.03,0.00047499,2]
[321010950,1711746638881,-688.03,0.0004828,2]
[321010951,1711746638890,-105634.66940562,0.0004829,10]
[321010952,1711746638899,-154.17961156,0.00048407,30]
[321010953,1711746638908,-234.033006,0.00048448,98]
[321010954,1711746638917,-1443.97210938,0.00048454,24]
[321010955,1711746638930,-37682.73135663,0.00048518,2]
[321010956,1711746638940,-167.08491538,0.00048644,13]
[321010957,1711746638949,-1056.0,0.000487,117]
[321010958,1711746638958,-165.52512877,0.00048717,30]
[321010959,1711746638967,-688.03,0.0004887,2]
[321010960,1711746638977,-2971.92470698,0.00048878,4]
[321010961,1711746638986,-4379.30624586,0.00048878,4]
[321010962,1711746638995,-204.92926866,0.00048878,4]
[321010963,1711746639004,-214.5273441,0.00048878,4]
[321010964,1711746639014,-2344.64153802,0.00048878,4]
[321010965,1711746639024,-2475.22227284,0.00048878,4]
[321010966,1711746639034,-357.24092281,0.00048878,4]
[321010967,1711746639043,-193.71088867,0.00048878,4]
[321010968,1711746639053,-194054.60513742,0.0004888,2]
[321010969,1711746639062,-5739.51348957,0.00048883,2]
[321010970,1711746639071,-529.7,0.00049099,2]
[321010971,1711746639080,-150.0,0.00049099,2]
[321010972,1711746639090,-150.0,0.00049099,2]
[321010973,1711746639099,-150.0,0.000491,9]
[321010974,1711746639109,-1311.6,0.00049315,60]
[321010975,1711746639118,-159.58,0.00049315,30]
[321010976,1711746639127,-157.13748303,0.00049336,30]
[321010977,1711746639141,-840.87577,0.0004938,46]
[321010978,1711746639149,-234.033006,0.00049448,99]
[321010979,1711746639159,-1443.97210938,0.00049498,25]
[321010980,1711746639168,-1000.0,0.00049499,30]
[321010981,1711746639178,-688.03,0.00049525,2]
[321010982,1711746639187,-4775.0,0.00049535,2]
[321010983,1711746639196,-42999.0,0.00049535,2]
[321010984,1711746639205,-159.8,0.00049576,120]
[321010985,1711746639215,-150.0,0.000496,10]
[321010986,1711746639225,-157.13748303,0.00049645,30]
[321010987,1711746639234,-150.0,0.00049647,30]
[321010988,1711746639244,-150.0,0.00049647,30]
[321010989,1711746639254,-150.0,0.00049647,30]
[321010990,1711746639264,-1700.0,0.000497,18]
[321010991,1711746639274,-572.78,0.00049737,2]
[321010992,1711746639283,-115562.40430649,0.0004977,5]
[321010993,1711746639292,-168.25128901,0.000498,60]
[321010994,1711746639302,-2300.0,0.000498,18]
[321010995,1711746639312,-326.53154234,0.00049863,120]
[321010996,1711746639322,-5000.0,0.0004988,3]
[321010997,1711746639331,-253.94151929,0.0004988,46]
[321010998,1711746639341,-247.14583308,0.0004988,2]
[321010999,1711746639350,-168.22140587,0.000499,2]
[321011000,1711746639359,-2900.0,0.000499,18]
[321011001,1711746639368,-867.1370011,0.00049905,2]
[321011002,1711746639377,-688.03,0.00049905,2]
[321011003,1711746639386,-5392.2818429,0.00049915,2]
[321011004,1711746639396,-554.6209161,0.00049915,2]
[321011005,1711746639405,-7643.0552725,0.00049915,2]
[321011006,1711746639414,-43269.1608833,0.00049915,2]
[321011007,1711746639423,-4811.9327648,0.00049915,2]
[321011008,1711746639432,-8272.3596488,0.00049915,2]
[321011009,1711746639441,-146004.6188064,0.00049915,2]
[321011010,1711746639450,-209.0,0.00049949,15]
[321011011,1711746639459,-269.0,0.0004995,15]
[321011012,1711746639469,-209.0,0.00049959,15]
[321011013,1711746639479,-150.5,0.0004996,15]
[321011014,1711746639488,-688.03,0.00049963,2]
[321011015,1711746639498,-209.0,0.00049969,15]
[321011016,1711746639507,-150.5,0.0004997,15]
[321011017,1711746639516,-150.5,0.0004997,15]
[321011018,1711746639525,-184.0,0.0004997,15]
[321011019,1711746639534,-178.0,0.0004997,15]
[321011020,1711746639544,-150.5,0.0004997,15]
[321011021,1711746639553,-867.1370011,0.0004997,2]
[321011022,1711746639562,-3813.0,0.00049973,30]
[321011023,1711746639571,-150.0,0.00049973,30]
[321011024,1711746639580,-150.0,0.00049973,30]
[321011025,1711746639589,-150.0,0.00049973,30]
[321011026,1711746639599,-150.0,0.00049979,30]
[321011027,1711746639608,-150.86,0.0004998,15]
[321011028,1711746639617,-150.5,0.0004998,15]
[321011029,1711746639627,-150.5,0.0004998,15]
[321011030,1711746639636,-178.0,0.0004998,15]
[321011031,1711746639646,-150.5,0.0004998,15]
[321011032,1711746639656,-98286.18770261,0.0004998,2]
[321011033,1711746639666,-150.5,0.0004999,15]
[321011034,1711746639676,-150.89,0.0004999,15]
[321011035,1711746639685,-150.5,0.0004999,15]
[321011036,1711746639695,-150.5,0.0004999,15]
[321011037,1711746639706,-150.5,0.0004999,15]
[321011038,1711746639716,-178.0,0.0004999,15]
[321011039,1711746639727,-152.11192551,0.00049991,44]
[321011040,1711746639738,-298.71277744,0.00049997,2]
[321011041,1711746639748,-846.0,0.00049998,4]
[321011042,1711746639758,-1921.27100377,0.00049998,4]
[321011043,1711746639767,-3483.1018067,0.00049998,4]
[321011044,1711746639777,-261.89255077,0.00049998,4]
[321011045,1711746639786,-2000.0,0.00049998,2]
[321011046,1711746639796,-300.0,0.00049999,60]
[321011047,1711746639807,-500.0,0.00049999,30]
[321011048,1711746639817,-1000.0,0.00049999,60]
[321011049,1711746639826,-150.0,0.00049999,30]
[321011050,1711746639835,-143999.04363891,0.0005,36]
[321011051,1711746639848,-7857.96199464,0.0005,36]
[321011052,1711746639884,-8073.11000002,0.0005,36]
[321011053,1711746639896,-267.53950482,0.0005,36]
[321011055,1711746640234,-500.0,0.00047751,2]
[321011056,1711746640243,-63708.53155766,0.0005,36]
[321011057,1711746640255,-18816.1453934,0.0005,36]
[321011058,1711746640270,-699.31201981,0.0005,36]
[321011059,1711746640281,-9090.15729972,0.0005,36]
[321011063,1711746643006,-5917.76994183,0.0005,36]
[321011064,1711746643018,-396.85457265,0.0005,36]
[321011065,1711746643029,-434.7856783,0.0005,36]
[321011066,1711746643041,-1730.86174578,0.0005,36]
[321011108,1711746646006,-5361.00000015,0.0004999,2]
[321011109,1711746646021,-2684.1984934,0.0004999,2]
[321011110,1711746646029,-43844.64813635,0.0005,36]
[321011111,1711746647422,555.0,0.00035,4]
[321011112,1711746647445,512.45661965,0.00035,4]
[321011113,1711746647467,555.0,0.00035,4]
[321011114,1711746651686,177.67,0.00024,2]
[321011115,1711746651707,48.04579633,0.00024,2]
[321011122,1711746886589,-672.10691344,0.00035,4]
[321011123,1711746886614,-361.0,0.00037,2]
[321011124,1711746886638,-283.2922,0.0003887,2]
[321011125,1711746886660,-16534.3587,0.00040237,2]
[321011126,1711746886685,-49.24218656,0.00040337,2]
[321011127,1711747011845,-177.67,0.00038356,2]
[321011128,1711747011875,-201.5463,0.00040237,2]
[321011129,1711747011908,-159.85163457,0.00040237,2]
[321011130,1711747011939,-520.0,0.00040323,2]
[321011131,1711747011969,-1858.76781344,0.00040337,2]
[321011132,1711747011999,-150.0,0.00040337,2]
[321011133,1711747012048,-177.67,0.00040646,2]
[321011134,1711747012063,-201.5463,0.00040646,2]
[321011135,1711747012081,-159.85163457,0.00040646,2]
[321011136,1711747012096,-520.0,0.00040646,2]
[321011137,1711747012111,-1858.76781344,0.00040646,2]
[321011138,1711747012124,-150.0,0.00040646,2]
[321011139,1711747012138,-887.32850398,0.00040646,2]
[321011140,1711747109956,-3820.0,0.00040646,2]
[321011141,1711747181661,-326.8,0.00040646,2]
[321011160,1711747513405,404.63222362,0.0003,4]
[321011161,1711747516448,150.36777638,0.0003,4]
[321011162,1711747516472,4.63222362,0.0003,4]
[321011166,1711747641103,-245.41559273,0.00035768,2]
[321011167,1711747641127,-406.35103241,0.00039427,4]
[321011168,1711747641149,-179.32336699,0.00040545,2]
[321011169,1711747641173,-0.03574801,0.00040646,2]
[321011170,1711747641198,-159.85163457,0.00041445,2]
[321011171,1711747641223,-159.85163457,0.00042653,2]
[321011172,1711747641253,-486.51857006,0.00042982,4]
[321011173,1711747641290,-159.85163457,0.00043861,2]
[321011174,1711747641320,-3263.21202746,0.00045,5]
[321011175,1711747641354,-159.85163457,0.00045069,2]
[321011176,1711747641378,-520.0,0.00045363,2]
[321011177,1711747641407,-475.12,0.00045923,2]
[321011178,1711747641436,-159.85163457,0.00046276,2]
[321011179,1711747641464,-155.12783886,0.00046666,30]
[321011180,1711747641491,-155.20344437,0.00046907,30]
[321011181,1711747641515,-150.05,0.00047179,2]
[321011182,1711747641542,-170.76,0.00047445,2]
[321011183,1711747641570,-159.85163457,0.00047484,2]
[321011184,1711747641597,-150.0,0.00047513,5]
[321011185,1711747641622,-3235.34,0.00047514,2]
[321011186,1711747641646,-584.0,0.00047527,2]
[321011187,1711747641674,-250.0,0.00047549,120]
[321011188,1711747641701,-500.0,0.00047592,2]
[321011189,1711747641727,-200.0,0.00047592,2]
[321011190,1711747641753,-23900.0,0.00047592,2]
[321011191,1711747641780,-1677.1,0.00047638,120]
[321011192,1711747641808,-150.0,0.00047657,2]
[321011193,1711747641835,-500.0,0.00047668,2]
[321011194,1711747641861,-250.0,0.00047668,120]
[321011195,1711747641883,-4173.52010469,0.00047675,2]
[321011196,1711747641907,-159.43,0.00047675,15]
[321011197,1711747641933,-334.63,0.00047681,2]
[321011198,1711747641961,-250.0,0.00047694,112]
[321011199,1711747641987,-1297.12,0.00047694,2]
[321011200,1711747642009,-534.84684711,0.00047758,4]
[321011201,1711747642040,-216.9117649,0.00047758,4]
[321011202,1711747642063,-777.54370737,0.00047758,2]
[321011203,1711747642088,-763.94517598,0.00047758,4]
[321011204,1711747642111,-1672.91760291,0.00047759,4]
[321011205,1711747642134,-44622.75,0.0004776,2]
[321011206,1711747642158,-154.48330153,0.00047776,30]
[321011207,1711747642183,-500.0,0.00047854,2]
[321011208,1711747642206,-156.65046783,0.00047936,30]
[321011209,1711747642231,-154.64,0.00047977,2]
[321011210,1711747642254,-171.54,0.00047987,2]
[321011211,1711747642278,-559.09966642,0.00048,4]
[321011212,1711747642304,-154.64,0.00048156,2]
[321011213,1711747642330,-475.12,0.00048186,2]
[321011214,1711747642354,-432.3772,0.00048221,2]
[321011215,1711747642377,-6848.917,0.00048328,2]
[321011216,1711747642402,-154.64,0.00048335,2]
[321011217,1711747642426,-537.8,0.00048339,2]
[321011218,1711747642451,-537.8,0.00048352,2]
[321011219,1711747642476,-537.8,0.00048364,2]
[321011220,1711747642501,-537.8,0.00048377,2]
[321011221,1711747642525,-537.8,0.0004839,2]
[321011222,1711747642550,-537.8,0.00048403,2]
[321011223,1711747642576,-537.8,0.00048415,2]
[321011224,1711747642600,-537.8,0.00048428,2]
[321011225,1711747642624,-537.8,0.00048441,2]
[321011226,1711747642648,-537.8,0.00048453,2]
[321011227,1711747642672,-537.8,0.00048466,2]
[321011228,1711747642697,-537.8,0.00048479,2]
[321011229,1711747642720,-537.8,0.00048492,2]
[321011230,1711747642744,-537.8,0.00048504,2]
[321011231,1711747642768,-154.64,0.00048513,2]
[321011232,1711747642791,-537.8,0.00048517,2]
[321011233,1711747642815,-537.8,0.0004853,2]
[321011234,1711747642839,-537.8,0.00048542,2]
[321011235,1711747642862,-537.8,0.00048555,2]
[321011236,1711747642886,-537.8,0.00048568,2]
[321011237,1711747642909,-537.8,0.00048581,2]
[321011238,1711747642932,-150.02,0.0004869,2]
[321011239,1711747642955,-749.79919295,0.00048692,2]
[321011243,1711747832122,-427.6,0.00046741,2]
[321011244,1711747832132,-277.32261432,0.00047171,2]
[321011245,1711747832304,-530.15,0.00047171,2]
[321011246,1711747832316,-81.44738568,0.00047171,2]
[321011247,1711747832325,-167.31,0.00047592,2]
[321011248,1711747832335,-432.3772,0.00047714,2]
[321011249,1711747832345,-559.09966642,0.00048,4]
[321011250,1711747832355,-250.0,0.0004857,120]
[321011251,1711747832365,-250.0,0.0004858,112]
[321011252,1711747832375,-1590.0,0.00048629,120]
[321011253,1711747832385,-500.0,0.00048679,2]
[321011254,1711747832394,-159.85163457,0.00048692,2]
[321011255,1711747832404,-1056.0,0.000487,117]
[321011256,1711747832414,-155.78382241,0.00048998,4]
[321011257,1711747832423,-141.18541084,0.00049,5]
[321011258,1711747832512,-1016.6021004,0.00049,5]
[321011259,1711747832522,-748.88052485,0.00049,120]
[321011260,1711747832532,-427.6,0.00049005,2]
[321011261,1711747832542,-154.59,0.00049037,2]
[321011262,1711747832552,-150.0,0.00049038,5]
[321011263,1711747832562,-150.0,0.00049038,5]
[321011264,1711747832572,-35324.0,0.00049039,2]
[321011265,1711747832581,-150.99,0.00049039,2]
[321011266,1711747832591,-150.0,0.000491,9]
[321011267,1711747832600,-154.59,0.0004927,2]
[321011268,1711747832610,-520.77934344,0.00049315,30]
[321011269,1711747832620,-1000.0,0.00049315,60]
[321011270,1711747832630,-513.78160399,0.000494,3]
[321011271,1711747832639,-2532.41367215,0.000494,2]
[321011272,1711747832649,-31916.82094136,0.000495,2]
[321011273,1711747832659,-700.7298,0.000495,47]
[321011274,1711747832668,-154.59,0.00049502,2]
[321011275,1711747832678,-155.74797489,0.00049506,30]
[321011276,1711747832688,-13592.6023,0.0004959,2]
[321011277,1711747832698,-800.0,0.00049598,30]
[321011278,1711747832710,-500.0,0.00049598,30]
[321011279,1711747832722,-150.0,0.000496,10]
[321011280,1711747832733,-4364.878,0.00049663,3]
[321011281,1711747832745,-190.21,0.00049669,2]
[321011282,1711747832756,-1000.0,0.000497,2]
[321011283,1711747832766,-154.59,0.00049734,2]
[321011284,1711747832776,-2500.0,0.00049795,90]
[321011285,1711747832787,-201.26299535,0.00049799,4]
[321011286,1711747832798,-2441.2477,0.000498,2]
[321011287,1711747832808,-1000.0,0.000498,2]
[321011288,1711747832818,-5835.6357,0.000498,2]
[321011289,1711747832827,-2500.0,0.000498,2]
[321011290,1711747832837,-13235.945372,0.000498,2]
[321011291,1711747832847,-167.08491538,0.000498,14]
[321011292,1711747832857,-246.44882681,0.000498,21]
[321011293,1711747832867,-834.76,0.00049875,30]
[321011294,1711747832877,-1198.58,0.00049875,30]
[321011295,1711747832888,-151.033006,0.00049878,96]
[321011296,1711747832899,-151.033006,0.00049888,97]
[321011297,1711747832909,-321.08478047,0.00049897,2]
[321011298,1711747832919,-151.033006,0.00049898,98]
[321011299,1711747832931,-1000.0,0.00049899,30]
[321011300,1711747832941,-1256.95,0.00049899,60]
[321011301,1711747832951,-212.0,0.000499,2]
[321011302,1711747832961,-245000.0,0.000499,2]
[321011303,1711747832971,-159.85163457,0.000499,2]
[321011304,1711747832983,-152.14287476,0.000499,44]
[321011305,1711747832993,-230.03567725,0.000499,28]
[321011306,1711747833004,-151.033006,0.00049908,99]
[321011307,1711747833014,-888.92,0.0004991,2]
[321011308,1711747833026,-151.033006,0.00049918,100]
[321011309,1711747833036,-151.033006,0.00049928,101]
[321011310,1711747833047,-151.033006,0.00049938,102]
[321011311,1711747833058,-151.033006,0.00049948,103]
[321011312,1711747833069,-151.033006,0.00049958,104]
[321011313,1711747833080,-154.59,0.00049966,2]
[321011314,1711747833090,-151.033006,0.00049968,105]
[321011315,1711747833102,-151.033006,0.00049978,106]
[321011316,1711747833113,-151.033006,0.00049988,105]
[321011317,1711747833124,-62791.5170625,0.00049995,2]
[321011318,1711747833134,-6895.4136542,0.00049995,2]
[321011319,1711747833145,-6048.864309,0.00049995,2]
[321011320,1711747833155,-11629.7261989,0.00049995,2]
[321011321,1711747833165,-194169.5679456,0.00049995,2]
[321011322,1711747833176,-232.33216023,0.00049997,2]
[321011323,1711747833186,-315.65132578,0.00049998,4]
[321011324,1711747833196,-151.033006,0.00049998,106]
[321011325,1711747833206,-356.11779411,0.00049999,4]
[321011326,1711747833216,-205.63715197,0.00049999,120]
[321011327,1711747833226,-5785.42588099,0.00049999,120]
[321011328,1711747833237,-23642.90495713,0.0005,4]
[321011329,1711747833246,-55529.34246459,0.0005,2]
[321011330,1711747833270,-6470.65753541,0.0005,2]
[321011331,1711747833280,-2000.0,0.0005,120]
[321011332,1711747833291,-1772.0,0.0005,16]
[321011333,1711747833314,-999.999999,0.0005,2]
[321011334,1711747833326,-1496.8272558,0.0005,5]
[321011335,1711747833336,-9740.89048634,0.0005,4]
[321011336,1711747833346,-114832.83126919,0.0005,120]
[321011337,1711747833375,-7118.27593882,0.0005,120]
[321011338,1711747833388,-690.8245438,0.0005,120]
[321011339,1711747833405,-5755.78382241,0.0005,120]
[321011340,1711747833418,-994.86951933,0.0005,120]
[321011341,1711747833486,-17.81404153,0.0005,120]
[321011342,1711747833499,-277.32241355,0.0005,120]
[321011343,1711747833511,-397.7418011,0.0005,120]
[321011344,1711747833525,-1029.07753147,0.0005,120]
[321011345,1711747838598,-1.1e-07,0.00048568,2]
[321011346,1711747838656,-37.98588494,0.00048568,2]
[321011347,1711747838667,-1945456.91797819,0.00048568,2]
[321011348,1711747838699,-4454.2615764,0.00048568,2]
[321011349,1711747838710,-1551.42169886,0.00048568,2]
[321011350,1711747840111,-4167.45046333,0.00048568,2]
[321011351,1711747840334,-24852.91953794,0.00048568,2]
[321011375,1711747843045,-226.78,0.00048558,30]
[321011376,1711747843054,-848.55401494,0.00048568,2]
[321011377,1711747843066,-300.0,0.00048568,2]
[321011378,1711747843113,-5917.76994183,0.00048568,2]
[321011379,1711747843125,-11061.55541254,0.00048568,2]
[321011380,1711747843270,-61854.34989721,0.00048568,2]
[321011381,1711747843283,-48130.7297671,0.00048568,2]
[321011382,1711747843320,-15444.867437,0.00048568,2]
[321011477,1711747845911,-551.09027921,0.00048568,2]
[321011478,1711747845976,-25062.77642515,0.00048568,2]
[321011483,1711747851911,223.94252704,0.00024,2]
[321011484,1711747873784,361.41203381,0.00038853,4]
[321011486,1711748164258,-250.0,0.00033,3]
[321011487,1711748237365,-275.91936649,0.00038794,4]
[321011488,1711748493406,279.08063351,0.000387,2]
[321011489,1711748840149,-201.48417008,0.00038691,4]
[321011490,1711748899321,404.63222355,0.0003,4]
[321011491,1711748956120,-151.61319479,0.000384,2]
[321011492,1711748956141,-11465.96807,0.00038494,2]
[321011493,1711748956163,-47130.47278783,0.00038688,4]
[321011494,1711748956186,-1054.25515529,0.00038688,4]
[321011495,1711748956208,-4088.81337984,0.00038689,4]
[321011496,1711748956229,-7190.00322083,0.00038689,5]
[321011497,1711748956255,-325.65308426,0.00038689,4]
[321011498,1711748956278,-437.38748594,0.00038689,4]
[321011499,1711748956298,-173.29860837,0.00038689,4]
[321011500,1711748956318,-155.74157422,0.00038689,4]
[321011501,1711748956339,-150.0,0.0003869,5]
[321011502,1711748956360,-4180.97479576,0.0003869,4]
[321011503,1711748956382,-159.85103727,0.00038694,2]
[321011504,1711748956402,-513.78160398,0.00038695,2]
[321011505,1711748956423,-487.53405226,0.000387,2]
[321011506,1711748956443,-379.66838882,0.00038793,4]
[321011507,1711748956463,-730.38948099,0.00038798,4]
[321011508,1711748956483,-327.0,0.000388,2]
[321011509,1711748956507,-159.85103724,0.00040094,2]
[321011510,1711748956529,-191.64,0.00040094,15]
[321011511,1711748956554,-244.32,0.00040094,2]
[321011512,1711748956575,-499.99,0.00040094,2]
[321011513,1711748956596,-159.85103724,0.00041494,2]
[321011514,1711748956620,-159.85103724,0.00042894,2]
[321011515,1711748958282,898.54083325,0.00038399,4]
[321011538,1711749032051,-263.68062879,0.00043706,4]
[321011539,1711749032707,-260.62689546,0.00043706,4]
[321011540,1711749032719,-291.1832019,0.00043708,4]
[321011541,1711749032841,-18.8167981,0.00043708,4]
[321011542,1711749032856,-712.61418707,0.00043709,4]
[321011543,1711749032869,-191.74101816,0.00043709,4]
[321011544,1711749032881,-4137.06,0.00043709,2]
[321011545,1711749032894,-159.85103724,0.00044295,2]
[321011546,1711749032906,-2736.0,0.00045,120]
[321011547,1711749032919,-685.31,0.00045,2]
[321011548,1711749032931,-280.8,0.00045205,2]
[321011550,1711749032943,-429.0,0.00045411,2]
[321011553,1711749032955,-159.85103724,0.00045695,2]
[321011555,1711749032967,-200.0,0.00046255,2]
[321011557,1711749032979,-159.43,0.00046267,15]
[321011559,1711749032991,-159.65462471,0.00046295,30]
[321011563,1711749033003,-250.0,0.00046399,2]
[321011565,1711749033015,-153.88377781,0.00046585,30]
[321011567,1711749033026,-668.23626058,0.00046679,2]
[321011572,1711749033142,-542.45373942,0.00046679,2]
[321011573,1711749033154,-460.46,0.00046793,2]
[321011574,1711749033166,-250.0,0.00046824,112]
[321011575,1711749033178,-508.82,0.00046835,2]
[321011576,1711749033190,-250.0,0.00046886,120]
[321011577,1711749033202,-87.89318504,0.00046922,120]
[321011585,1711749038392,-1237.10681496,0.00046922,120]
[321011586,1711749038401,-500.0,0.00046983,2]
[321011587,1711749038411,-467.2,0.00047015,2]
[321011588,1711749038421,-204.82,0.00047046,2]
[321011589,1711749038430,-159.85103724,0.00047095,2]
[321011590,1711749038442,-150.04,0.0004711,2]
[321011591,1711749038451,-205.47,0.00047179,2]
[321011592,1711749038460,-1688.27578144,0.00047288,2]
[321011593,1711749038470,-157.64,0.00047344,2]
[321011595,1711749038480,-1097.02882633,0.00047345,4]
[321011597,1711749038489,-545.26682314,0.00047345,2]
[321011599,1711749038499,-668.77110589,0.00047345,4]
[321011601,1711749038508,-9233.73614851,0.00047346,4]
[321011603,1711749038518,-23900.0,0.00047347,2]
[321011604,1711749038528,-153.92551782,0.00047388,30]
[321011605,1711749038538,-800.0,0.00047397,2]
[321011606,1711749038547,-660.18,0.00047455,2]
[321011607,1711749038557,-2386.61,0.00047529,120]
[321011608,1711749038567,-154.48330153,0.00047584,30]
[321011609,1711749038576,-429.0,0.00047675,2]
[321011610,1711749038586,-157.64,0.00047696,2]
[321011611,1711749038595,-532.8,0.00047914,2]
[321011612,1711749038605,-282.51166916,0.00048,4]
[321011613,1711749038614,-151.0,0.00048,120]
[321011614,1711749038624,-157.64,0.00048049,2]
[321011615,1711749038634,-249.90913608,0.0004808,4]